fUSD/lending_fUSD_20240628
["ID","MTS","AMOUNT","RATE_DAILY","PERIOD"]
[330562663,1719574252426,-909.53526529,0.00019178,2]
[330562664,1719574253416,-17.87473471,0.00019178,2]
[330562665,1719574253427,-500.0,0.00019178,2]
[330562666,1719574253436,-500.0,0.00019178,2]
[330562667,1719574253446,-620.27,0.00019178,2]
[330562668,1719574253456,-5337.31,0.00019178,2]
[330562669,1719574253466,-500.0,0.00019178,2]
[330562670,1719574253476,-500.0,0.00019178,2]
[330562671,1719574253486,-500.0,0.00019178,2]
[330562672,1719574253495,-500.0,0.00019178,2]
[330562673,1719574253505,-500.0,0.00019178,2]
[330562674,1719574253515,-218.54064132,0.00019178,2]
[330562675,1719574253524,-500.0,0.00019178,2]
[330562676,1719574253533,-500.0,0.00019178,2]
[330562677,1719574253545,-500.0,0.00019178,2]
[330562678,1719574253554,-500.0,0.00019178,2]
[330562679,1719574253563,-1228.37,0.00019178,2]
[330562680,1719574253573,-634.21,0.00019178,2]
[330562681,1719574253582,-500.0,0.00019178,2]
[330562682,1719574253591,-500.0,0.00019178,2]
[330562683,1719574253601,-500.0,0.00019178,2]
[330562684,1719574253611,-761.68,0.00019178,2]
[330562685,1719574253620,-500.0,0.00019178,2]
[330562686,1719574253629,-500.0,0.00019178,2]
[330562687,1719574253639,-151.0,0.00019178,2]
[330562688,1719574253648,-151.0,0.00019178,2]
[330562689,1719574253658,-151.0,0.00019178,2]
[330562690,1719574253667,-151.0,0.00019178,2]
[330562691,1719574253677,-165.65639,0.00019178,2]
[330562692,1719574253686,-151.0,0.00019178,2]
[330562693,1719574253695,-151.0,0.00019178,2]
[330562694,1719574253704,-500.0,0.00019178,2]
[330562695,1719574253714,-151.0,0.00019178,2]
[330562696,1719574253723,-151.0,0.00019178,2]
[330562697,1719574253732,-500.0,0.00019178,2]
[330562698,1719574253742,-153.211901,0.00019178,2]
[330562699,1719574253751,-500.0,0.00019178,2]
[330562700,1719574253761,-500.0,0.00019178,2]
[330562701,1719574253771,-151.0,0.00019178,2]
[330562702,1719574253780,-500.0,0.00019178,2]
[330562703,1719574253791,-944.52,0.00019178,2]
[330562704,1719574253801,-500.0,0.00019178,2]
[330562705,1719574253811,-151.0,0.00019178,2]
[330562706,1719574253821,-151.0,0.00019178,2]
[330562707,1719574253831,-500.0,0.00019178,2]
[330562708,1719574253841,-151.0,0.00019178,2]
[330562709,1719574253850,-1732.91,0.00019178,2]
[330562710,1719574253860,-151.0,0.00019178,2]
[330562711,1719574253870,-151.0,0.00019178,2]
[330562712,1719574253879,-500.0,0.00019178,2]
[330562713,1719574253889,-702.52,0.00019178,2]
[330562714,1719574253899,-151.0,0.00019178,2]
[330562715,1719574253908,-225.759403,0.00019178,2]
[330562716,1719574253917,-1267.5,0.00019178,2]
[330562717,1719574253927,-1197.03,0.00019178,2]
[330562718,1719574253936,-500.0,0.00019178,2]
[330562719,1719574253946,-500.0,0.00019178,2]
[330562720,1719574253955,-500.0,0.00019178,2]
[330562721,1719574253965,-500.0,0.00019178,2]
[330562722,1719574253974,-2306.25,0.00019178,2]
[330562723,1719574253983,-232.317398,0.00019178,2]
[330562724,1719574253992,-500.0,0.00019178,2]
[330562725,1719574254002,-232.317398,0.00019178,2]
[330562726,1719574254011,-232.317398,0.00019178,2]
[330562727,1719574254021,-232.317398,0.00019178,2]
[330562728,1719574254031,-500.0,0.00019178,2]
[330562729,1719574254042,-232.317398,0.00019178,2]
[330562730,1719574254052,-232.317398,0.00019178,2]
[330562731,1719574254062,-232.317398,0.00019178,2]
[330562732,1719574254072,-232.317398,0.00019178,2]
[330562733,1719574254082,-500.0,0.00019178,2]
[330562734,1719574254092,-232.317398,0.00019178,2]
[330562735,1719574254102,-232.317398,0.00019178,2]
[330562736,1719574254112,-232.317398,0.00019178,2]
[330562737,1719574254123,-232.317398,0.00019178,2]
[330562738,1719574254139,-232.317398,0.00019178,2]
[330562739,1719574254149,-500.0,0.00019178,2]
[330562740,1719574254159,-500.0,0.00019178,2]
[330562741,1719574254169,-232.317398,0.00019178,2]
[330562742,1719574254180,-971.92,0.00019178,2]
[330562743,1719574254190,-232.317398,0.00019178,2]
[330562744,1719574254200,-500.0,0.00019178,2]
[330562745,1719574254212,-232.317398,0.00019178,2]
[330562746,1719574254222,-2879.33,0.00019178,2]
[330562747,1719574254233,-500.0,0.00019178,2]
[330562748,1719574254244,-516.06,0.00019178,2]
[330562749,1719574254254,-232.317398,0.00019178,2]
[330562750,1719574254264,-1188.36,0.00019178,2]
[330562751,1719574254274,-232.317398,0.00019178,2]
[330562752,1719574254284,-2138.0,0.00019178,2]
[330562753,1719574254296,-4907.25,0.00019178,2]
[330562754,1719574254307,-4613.05,0.00019178,2]
[330562755,1719574254317,-232.317398,0.00019178,2]
[330562756,1719574254328,-232.317406,0.00019178,2]
[330562757,1719574254338,-642.09,0.00019178,2]
[330562758,1719574254348,-500.0,0.00019178,2]
[330562759,1719574254358,-745.46,0.00019178,2]
[330562760,1719574254368,-500.0,0.00019178,2]
[330562761,1719574254379,-1779.68,0.00019178,2]
[330562762,1719574254388,-507.48361532,0.00019178,2]
[330562763,1719574254399,-500.0,0.00019178,2]
[330562764,1719574254409,-500.0,0.00019178,2]
[330562765,1719574254418,-151.0,0.00019178,2]
[330562766,1719574254428,-500.0,0.00019178,2]
[330562767,1719574254438,-151.0,0.00019178,2]
[330562768,1719574254447,-151.0,0.00019178,2]
[330562769,1719574254457,-151.0,0.00019178,2]
[330562770,1719574254467,-151.0,0.00019178,2]
[330562771,1719574254477,-500.0,0.00019178,2]
[330562772,1719574254486,-151.0,0.00019178,2]
[330562773,1719574254496,-500.0,0.00019178,2]
[330562774,1719574254505,-151.0,0.00019178,2]
[330562775,1719574254515,-151.0,0.00019178,2]
[330562776,1719574254524,-500.0,0.00019178,2]
[330562777,1719574254533,-646.81,0.00019178,2]
[330562778,1719574254545,-151.0,0.00019178,2]
[330562779,1719574254556,-1434.02,0.00019178,2]
[330562780,1719574254565,-500.0,0.00019178,2]
[330562781,1719574254574,-515.3,0.00019178,2]
[330562782,1719574254582,-500.0,0.00019178,2]
[330562783,1719574254592,-500.0,0.00019178,2]
[330562784,1719574254601,-995.14,0.00019178,2]
[330562785,1719574254611,-1543.06,0.00019178,2]
[330562786,1719574254620,-500.0,0.00019178,2]
[330562787,1719574254630,-151.0,0.00019178,2]
[330562788,1719574254640,-151.0,0.00019178,2]
[330562789,1719574254651,-1191.4,0.00019178,2]
[330562790,1719574254661,-500.0,0.00019178,2]
[330562791,1719574254671,-500.0,0.00019178,2]
[330562792,1719574254681,-151.0,0.00019178,2]
[330562793,1719574254691,-151.0,0.00019178,2]
[330562794,1719574254701,-151.0,0.00019178,2]
[330562795,1719574254711,-151.0,0.00019178,2]
[330562796,1719574254720,-151.836558,0.00019178,2]
[330562797,1719574254730,-151.0,0.00019178,2]
[330562798,1719574254739,-151.0,0.00019178,2]
[330562799,1719574254749,-151.0,0.00019178,2]
[330562800,1719574254763,-500.0,0.00019178,2]
[330562801,1719574254774,-151.0,0.00019178,2]
[330562802,1719574254784,-189.051979,0.00019178,2]
[330562803,1719574254795,-500.0,0.00019178,2]
[330562804,1719574254805,-500.0,0.00019178,2]
[330562805,1719574254815,-500.0,0.00019178,2]
[330562806,1719574254826,-500.0,0.00019178,2]
[330562807,1719574254836,-1282.9,0.00019178,2]
[330562808,1719574254846,-871.82,0.00019178,2]
[330562809,1719574254857,-500.0,0.00019178,2]
[330562810,1719574254867,-1023.28,0.00019178,2]
[330562811,1719574254878,-559.8,0.00019178,2]
[330562812,1719574254888,-1320.22,0.00019178,2]
[330562813,1719574254899,-17001.72,0.00019178,2]
[330562814,1719574254910,-13660.36,0.00019178,2]
[330562815,1719574254920,-500.0,0.00019178,2]
[330562816,1719574254931,-151.0,0.00019178,2]
[330562817,1719574254941,-1260.26,0.00019178,2]
[330562818,1719574254952,-151.0,0.00019178,2]
[330562819,1719574254962,-679.73,0.00019178,2]
[330562820,1719574254972,-151.0,0.00019178,2]
[330562821,1719574254982,-151.0,0.00019178,2]
[330562822,1719574254992,-151.0,0.00019178,2]
[330562823,1719574255002,-500.0,0.00019178,2]
[330562824,1719574255011,-500.0,0.00019178,2]
[330562825,1719574255021,-2693.99,0.00019178,2]
[330562826,1719574255031,-546.12,0.00019178,2]
[330562827,1719574255043,-151.0,0.00019178,2]
[330562828,1719574255053,-151.0,0.00019178,2]
[330562829,1719574255063,-500.0,0.00019178,2]
[330562830,1719574255074,-151.0,0.00019178,2]
[330562831,1719574255084,-500.0,0.00019178,2]
[330562832,1719574255094,-151.881642,0.00019178,2]
[330562833,1719574255105,-500.0,0.00019178,2]
[330562834,1719574255115,-151.0,0.00019178,2]
[330562835,1719574255130,-1532.02,0.00019178,2]
[330562836,1719574255141,-151.0,0.00019178,2]
[330562837,1719574255151,-500.0,0.00019178,2]
[330562838,1719574255161,-287.920249,0.00019178,2]
[330562839,1719574255173,-500.0,0.00019178,2]
[330562840,1719574255183,-1407.95,0.00019178,2]
[330562841,1719574255194,-2082.77,0.00019178,2]
[330562842,1719574255204,-2347.8,0.00019178,2]
[330562843,1719574255214,-1305.78,0.00019178,2]
[330562844,1719574255224,-500.0,0.00019178,2]
[330562845,1719574255234,-500.0,0.00019178,2]
[330562846,1719574255245,-500.0,0.00019178,2]
[330562847,1719574255256,-500.0,0.00019178,2]
[330562848,1719574255496,-500.0,0.00019178,2]
[330562849,1719574255507,-500.0,0.00019178,2]
[330562850,1719574255517,-677.8,0.00019178,2]
[330562851,1719574255528,-200.0,0.00019178,2]
[330562852,1719574255540,-500.0,0.00019178,2]
[330562853,1719574255551,-151.0,0.00019178,2]
[330562854,1719574255562,-151.0,0.00019178,2]
[330562855,1719574255572,-151.0,0.00019178,2]
[330562856,1719574255583,-500.0,0.00019178,2]
[330562857,1719574255592,-151.0,0.00019178,2]
[330562858,1719574255603,-585.43,0.00019178,2]
[330562859,1719574255613,-151.0,0.00019178,2]
[330562860,1719574255623,-500.0,0.00019178,2]
[330562861,1719574255633,-1730.92,0.00019178,2]
[330562862,1719574255644,-151.0,0.00019178,2]
[330562863,1719574255653,-176.516279,0.00019178,2]
[330562864,1719574255663,-500.0,0.00019178,2]
[330562865,1719574255674,-647.6,0.00019178,2]
[330562866,1719574255684,-500.0,0.00019178,2]
[330562867,1719574255694,-500.0,0.00019178,2]
[330562868,1719574255704,-3605.24,0.00019178,2]
[330562869,1719574255714,-1215.87,0.00019178,2]
[330562870,1719574255724,-537.21,0.00019178,2]
[330562871,1719574255734,-1763.23,0.00019178,2]
[330562872,1719574255744,-500.0,0.00019178,2]
[330562873,1719574255754,-500.0,0.00019178,2]
[330562874,1719574255765,-810.38,0.00019178,2]
[330562875,1719574255775,-525.03,0.00019178,2]
[330562876,1719574255785,-500.0,0.00019178,2]
[330562877,1719574255795,-500.0,0.00019178,2]
[330562878,1719574255806,-151.0,0.00019178,2]
[330562879,1719574255816,-1175.62,0.00019178,2]
[330562880,1719574255826,-151.0,0.00019178,2]
[330562881,1719574255835,-500.0,0.00019178,2]
[330562882,1719574255846,-151.0,0.00019178,2]
[330562883,1719574255855,-151.0,0.00019178,2]
[330562884,1719574255865,-151.0,0.00019178,2]
[330562885,1719574255875,-1268.72,0.00019178,2]
[330562886,1719574255884,-500.0,0.00019178,2]
[330562887,1719574255895,-505.62,0.00019178,2]
[330562888,1719574255905,-500.0,0.00019178,2]
[330562889,1719574255914,-151.0,0.00019178,2]
[330562890,1719574255924,-151.0,0.00019178,2]
[330562891,1719574255934,-151.0,0.00019178,2]
[330562892,1719574255944,-2811.64,0.00019178,2]
[330562893,1719574255953,-151.0,0.00019178,2]
[330562894,1719574255963,-500.0,0.00019178,2]
[330562895,1719574255973,-151.0,0.00019178,2]
[330562896,1719574255982,-151.0,0.00019178,2]
[330562897,1719574255992,-2014.01,0.00019178,2]
[330562898,1719574256002,-151.0,0.00019178,2]
[330562899,1719574256012,-500.0,0.00019178,2]
[330562900,1719574256022,-500.0,0.00019178,2]
[330562901,1719574256031,-500.0,0.00019178,2]
[330562902,1719574256042,-151.0,0.00019178,2]
[330562903,1719574256051,-3089.8,0.00019178,2]
[330562904,1719574256060,-2522.35,0.00019178,2]
[330562905,1719574256070,-151.0,0.00019178,2]
[330562906,1719574256079,-1727.17,0.00019178,2]
[330562907,1719574256089,-151.0,0.00019178,2]
[330562908,1719574256098,-151.0,0.00019178,2]
[330562909,1719574256108,-173.451388,0.00019178,2]
[330562910,1719574256118,-929.44,0.00019178,2]
[330562911,1719574256130,-4034.45,0.00019178,2]
[330562912,1719574256144,-500.0,0.00019178,2]
[330562913,1719574256155,-500.0,0.00019178,2]
[330562914,1719574256164,-500.0,0.00019178,2]
[330562915,1719574256173,-2865.11,0.00019178,2]
[330562916,1719574256186,-865.12,0.00019178,2]
[330562917,1719574256196,-1174.61,0.00019178,2]
[330562918,1719574256205,-609.51,0.00019178,2]
[330562919,1719574256215,-500.0,0.00019178,2]
[330562920,1719574256223,-2110.87,0.00019178,2]
[330562921,1719574256239,-500.0,0.00019178,2]
[330562922,1719574256249,-2026.11,0.00019178,2]
[330562923,1719574256259,-500.0,0.00019178,2]
[330562924,1719574256269,-541.68968403,0.00019178,2]
[330562925,1719574256279,-1653.75,0.00019178,2]
[330562926,1719574256289,-1785.3,0.00019178,2]
[330562927,1719574256299,-500.0,0.00019178,2]
[330562928,1719574256309,-607.42,0.00019178,2]
[330562929,1719574256323,-500.0,0.00019178,2]
[330562930,1719574256333,-1035.59,0.00019178,2]
[330562931,1719574256343,-615.68,0.00019178,2]
[330562932,1719574256352,-1092.82,0.00019178,2]
[330562933,1719574256362,-151.0,0.00019178,2]
[330562934,1719574256372,-775.64,0.00019178,2]
[330562935,1719574256382,-212.835891,0.00019178,2]
[330562936,1719574256392,-151.0,0.00019178,2]
[330562937,1719574256401,-212.835891,0.00019178,2]
[330562938,1719574256412,-151.0,0.00019178,2]
[330562939,1719574256422,-500.0,0.00019178,2]
[330562940,1719574256431,-212.835891,0.00019178,2]
[330562941,1719574256441,-151.0,0.00019178,2]
[330562942,1719574256451,-500.0,0.00019178,2]
[330562943,1719574256460,-212.835891,0.00019178,2]
[330562944,1719574256470,-151.0,0.00019178,2]
[330562945,1719574256479,-212.835891,0.00019178,2]
[330562946,1719574256489,-186.466688,0.00019178,2]
[330562947,1719574256498,-1282.12,0.00019178,2]
[330562948,1719574256508,-212.835891,0.00019178,2]
[330562949,1719574256517,-212.835891,0.00019178,2]
[330562950,1719574256527,-212.835891,0.00019178,2]
[330562951,1719574256536,-212.835891,0.00019178,2]
[330562952,1719574256548,-500.0,0.00019178,2]
[330562953,1719574256556,-212.835891,0.00019178,2]
[330562954,1719574256564,-1639.91,0.00019178,2]
[330562955,1719574256575,-212.835891,0.00019178,2]
[330562956,1719574256584,-855.16,0.00019178,2]
[330562957,1719574256593,-500.0,0.00019178,2]
[330562958,1719574256603,-644.48,0.00019178,2]
[330562959,1719574256613,-212.835891,0.00019178,2]
[330562960,1719574256622,-212.835891,0.00019178,2]
[330562961,1719574256632,-500.0,0.00019178,2]
[330562962,1719574256641,-212.835891,0.00019178,2]
[330562963,1719574256651,-212.835891,0.00019178,2]
[330562964,1719574256661,-212.835891,0.00019178,2]
[330562965,1719574256672,-212.835891,0.00019178,2]
[330562966,1719574256681,-500.0,0.00019178,2]
[330562967,1719574256691,-212.835891,0.00019178,2]
[330562968,1719574256701,-212.835891,0.00019178,2]
[330562969,1719574256711,-212.835885,0.00019178,2]
[330562970,1719574256720,-688.92,0.00019178,2]
[330562971,1719574256730,-500.0,0.00019178,2]
[330562972,1719574256740,-3939.23,0.00019178,2]
[330562973,1719574256749,-2135.26,0.00019178,2]
[330562974,1719574256759,-787.36,0.00019178,2]
[330562975,1719574256768,-1815.21,0.00019178,2]
[330562976,1719574256778,-500.0,0.00019178,2]
[330562977,1719574256787,-198.36067986,0.00019178,2]
[330562978,1719574256798,-500.0,0.00019178,2]
[330562979,1719574256808,-586.63,0.00019178,2]
[330562980,1719574256818,-500.0,0.00019178,2]
[330562981,1719574256827,-418.18128932,0.00019178,2]
[330562982,1719574256836,-500.0,0.00019178,2]
[330562983,1719574256846,-500.0,0.00019178,2]
[330562984,1719574256856,-1096.42,0.00019178,2]
[330562985,1719574256865,-500.0,0.00019178,2]
[330562986,1719574256875,-500.0,0.00019178,2]
[330562987,1719574256884,-500.0,0.00019178,2]
[330562988,1719574256894,-692.43,0.00019178,2]
[330562989,1719574256903,-500.0,0.00019178,2]
[330562990,1719574256912,-500.0,0.00019178,2]
[330562991,1719574256922,-1562.34,0.00019178,2]
[330562992,1719574256931,-500.0,0.00019178,2]
[330562993,1719574256940,-981.92,0.00019178,2]
[330562994,1719574256950,-527.78,0.00019178,2]
[330562995,1719574256959,-162.88862692,0.00019178,2]
[330562996,1719574256968,-1527.22,0.00019178,2]
[330562997,1719574256979,-500.0,0.00019178,2]
[330562998,1719574256989,-2741.86,0.00019178,2]
[330562999,1719574256998,-500.0,0.00019178,2]
[330563000,1719574257009,-444.6056352,0.00019178,2]
[330563001,1719574257018,-151.0,0.00019178,2]
[330563002,1719574257028,-151.0,0.00019178,2]
[330563003,1719574257037,-151.0,0.00019178,2]
[330563004,1719574257048,-151.0,0.00019178,2]
[330563005,1719574257057,-500.0,0.00019178,2]
[330563006,1719574257066,-151.0,0.00019178,2]
[330563007,1719574257076,-500.0,0.00019178,2]
[330563008,1719574257085,-151.0,0.00019178,2]
[330563009,1719574257094,-151.0,0.00019178,2]
[330563010,1719574257104,-167.213005,0.00019178,2]
[330563011,1719574257113,-1158.15,0.00019178,2]
[330563012,1719574257122,-500.0,0.00019178,2]
[330563013,1719574257135,-500.0,0.00019178,2]
[330563014,1719574257145,-957.29,0.00019178,2]
[330563015,1719574257154,-750.02,0.00019178,2]
[330563016,1719574257164,-1295.7,0.00019178,2]
[330563017,1719574257175,-500.0,0.00019178,2]
[330563018,1719574257185,-1112.17,0.00019178,2]
[330563019,1719574257195,-500.0,0.00019178,2]
[330563020,1719574257205,-1079.92493301,0.00019178,2]
[330563021,1719574259073,-321.47067672,0.00019178,2]
[330563022,1719574259089,-80.28439027,0.00019178,2]
[330563023,1719574259099,-500.0,0.00019178,2]
[330563024,1719574259110,-10.30560973,0.00019178,2]
[330563025,1719574259123,-1933.94439027,0.00019178,2]
[330563026,1719574259140,-500.0,0.00019178,2]
[330563027,1719574259159,-1349.67,0.00019178,2]
[330563028,1719574259169,-871.00364214,0.00019178,2]
[330563029,1719574259182,-348.5255592,0.00019178,2]
[330563030,1719574259197,-1714.33079866,0.00019178,2]
[330563031,1719574259210,-500.0,0.00019178,2]
[330563032,1719574259220,-500.0,0.00019178,2]
[330563033,1719574259231,-1136.75,0.00019178,2]
[330563034,1719574259245,-313.32188022,0.00019178,2]
[330563035,1719574259255,-1079.27,0.00019178,2]
[330563036,1719574259266,-611.9,0.00019178,2]
[330563037,1719574259275,-902.55,0.00019178,2]
[330563038,1719574259285,-500.0,0.00019178,2]
[330563039,1719574259296,-500.0,0.00019178,2]
[330563040,1719574259306,-500.0,0.00019178,2]
[330563041,1719574259316,-151.0,0.00019178,2]
[330563042,1719574259326,-1710.99,0.00019178,2]
[330563043,1719574259335,-1141.0,0.00019178,2]
[330563044,1719574259344,-151.0,0.00019178,2]
[330563045,1719574259355,-992.54,0.00019178,2]
[330563046,1719574259364,-500.0,0.00019178,2]
[330563047,1719574259374,-151.0,0.00019178,2]
[330563048,1719574259384,-2176.04,0.00019178,2]
[330563049,1719574259393,-246.72437489,0.00019178,2]
[330563050,1719574259407,-253.27562511,0.00019178,2]
[330563051,1719574259417,-151.0,0.00019178,2]
[330563052,1719574259426,-941.02,0.00019178,2]
[330563053,1719574259436,-151.0,0.00019178,2]
[330563054,1719574259445,-49.07937489,0.00019178,2]
[330563055,1719574259458,-101.92062511,0.00019178,2]
[330563056,1719574259468,-302.07937489,0.00019178,2]
[330563057,1719574259480,-197.92062511,0.00019178,2]
[330563058,1719574259491,-588.81,0.00019178,2]
[330563059,1719574259500,-151.0,0.00019178,2]
[330563060,1719574259510,-151.0,0.00019178,2]
[330563061,1719574259519,-660.38,0.00019178,2]
[330563062,1719574259529,-151.0,0.00019178,2]
[330563063,1719574259539,-500.0,0.00019178,2]
[330563064,1719574259550,-151.0,0.00019178,2]
[330563065,1719574259560,-822.8,0.00019178,2]
[330563066,1719574259571,-572.22,0.00019178,2]
[330563067,1719574259581,-816.91,0.00019178,2]
[330563068,1719574259591,-194.908426,0.00019178,2]
[330563069,1719574259601,-500.0,0.00019178,2]
[330563070,1719574259614,-500.0,0.00019178,2]
[330563071,1719574259624,-500.0,0.00019178,2]
[330563072,1719574259634,-941.11,0.00019178,2]
[330563073,1719574259643,-151.0,0.00019178,2]
[330563074,1719574259653,-500.0,0.00019178,2]
[330563075,1719574259663,-1548.18,0.00019178,2]
[330563076,1719574259673,-151.0,0.00019178,2]
[330563077,1719574259683,-2422.52,0.00019178,2]
[330563078,1719574259693,-1212.07,0.00019178,2]
[330563079,1719574259703,-151.0,0.00019178,2]
[330563080,1719574259713,-151.0,0.00019178,2]
[330563081,1719574259723,-500.0,0.00019178,2]
[330563082,1719574259732,-653.26,0.00019178,2]
[330563083,1719574259742,-500.0,0.00019178,2]
[330563084,1719574259752,-151.0,0.00019178,2]
[330563085,1719574259762,-199.48073486,0.00019178,2]
[330563086,1719574259773,-500.0,0.00019178,2]
[330563087,1719574259783,-151.0,0.00019178,2]
[330563088,1719574259794,-500.0,0.00019178,2]
[330563089,1719574259804,-151.0,0.00019178,2]
[330563090,1719574259814,-230.481855,0.00019178,2]
[330563091,1719574259824,-500.0,0.00019178,2]
[330563092,1719574259834,-1260.17,0.00019178,2]
[330563093,1719574259844,-549.13,0.00019178,2]
[330563094,1719574259854,-500.0,0.00019178,2]
[330563095,1719574259865,-1998.94,0.00019178,2]
[330563096,1719574259875,-1119.73,0.00019178,2]
[330563097,1719574259885,-892.41,0.00019178,2]
[330563098,1719574259895,-151.0,0.00019178,2]
[330563099,1719574259905,-151.0,0.00019178,2]
[330563100,1719574259917,-151.0,0.00019178,2]
[330563101,1719574259926,-500.0,0.00019178,2]
[330563102,1719574259936,-151.0,0.00019178,2]
[330563103,1719574259945,-500.0,0.00019178,2]
[330563104,1719574259955,-500.0,0.00019178,2]
[330563105,1719574259964,-500.0,0.00019178,2]
[330563106,1719574259975,-500.0,0.00019178,2]
[330563107,1719574259985,-371.99564454,0.00019178,2]
[330563108,1719574259995,-703.85,0.00019178,2]
[330563109,1719574260010,-750.57,0.00019178,2]
[330563110,1719574260021,-500.0,0.00019178,2]
[330563111,1719574260031,-500.0,0.00019178,2]
[330563112,1719574260041,-500.0,0.00019178,2]
[330563113,1719574260054,-500.0,0.00019178,2]
[330563114,1719574260064,-500.0,0.00019178,2]
[330563115,1719574260074,-500.0,0.00019178,2]
[330563116,1719574260084,-500.0,0.00019178,2]
[330563117,1719574260094,-500.0,0.00019178,2]
[330563118,1719574260104,-500.0,0.00019178,2]
[330563119,1719574260114,-500.0,0.00019178,2]
[330563120,1719574260124,-492.36,0.00019178,2]
[330563121,1719574260140,-4000.17,0.00019178,2]
[330563122,1719574260150,-500.0,0.00019178,2]
[330563123,1719574260160,-849.24,0.00019178,2]
[330563124,1719574260171,-1275.57,0.00019178,2]
[330563125,1719574260181,-500.0,0.00019178,2]
[330563126,1719574260192,-821.62,0.00019178,2]
[330563127,1719574260202,-500.0,0.00019178,2]
[330563128,1719574260213,-745.03,0.00019178,2]
[330563129,1719574260224,-888.08,0.00019178,2]
[330563130,1719574260235,-500.0,0.00019178,2]
[330563131,1719574260245,-91.76135836,0.00019178,2]
[330563132,1719574260469,-1025.36864164,0.00019178,2]
[330563133,1719574260479,-3026.60029516,0.00019178,2]
[330563134,1719574260492,-66.74970484,0.00019178,2]
[330563135,1719574260502,-500.0,0.00019178,2]
[330563136,1719574260512,-905.79,0.00019178,2]
[330563137,1719574260522,-95.59046855,0.00019178,2]
[330563138,1719574260535,-404.40953145,0.00019178,2]
[330563139,1719574260547,-619.49,0.00019178,2]
[330563140,1719574260557,-880.19841587,0.00019178,2]
[330563141,1719574260569,-270.79158413,0.00019178,2]
[330563142,1719574260579,-500.0,0.00019178,2]
[330563143,1719574260589,-603.86,0.00019178,2]
[330563144,1719574260599,-911.58,0.00019178,2]
[330563145,1719574260609,-407.21321587,0.00019178,2]
[330563146,1719574260621,-92.78678413,0.00019178,2]
[330563147,1719574260631,-1569.34,0.00019178,2]
[330563148,1719574260642,-500.0,0.00019178,2]
[330563149,1719574260652,-151.0,0.00019178,2]
[330563150,1719574260662,-151.0,0.00019178,2]
[330563151,1719574260672,-151.0,0.00019178,2]
[330563152,1719574260682,-500.0,0.00019178,2]
[330563153,1719574260692,-151.0,0.00019178,2]
[330563154,1719574260702,-151.0,0.00019178,2]
[330563155,1719574260712,-146.21454847,0.00019178,2]
[330563156,1719574260725,-867.01545153,0.00019178,2]
[330563157,1719574260735,-151.0,0.00019178,2]
[330563158,1719574260745,-151.0,0.00019178,2]
[330563159,1719574260755,-151.0,0.00019178,2]
[330563160,1719574260765,-151.0,0.00019178,2]
[330563161,1719574260776,-151.0,0.00019178,2]
[330563162,1719574260787,-500.0,0.00019178,2]